fUSD/lending_fUSD_20241121
["ID","MTS","AMOUNT","RATE_DAILY","PERIOD"]
[342942705,1732215040541,-500.0,0.00036563,15]
[342942707,1732215040550,-500.0,0.00036563,15]
[342942709,1732215040559,-500.0,0.00036563,15]
[342942711,1732215040569,-311.08170006,0.00036563,15]
[342942713,1732215040579,-500.0,0.00036563,15]
[342942715,1732215040588,-500.0,0.00036563,15]
[342942717,1732215040598,-500.0,0.00036563,15]
[342942719,1732215040608,-500.0,0.00036563,15]
[342942721,1732215040617,-500.0,0.00036563,15]
[342942723,1732215040626,-500.0,0.00036563,15]
[342942725,1732215040636,-500.0,0.00036563,15]
[342942727,1732215040646,-500.0,0.00036563,15]
[342942729,1732215040655,-500.0,0.00036563,15]
[342942731,1732215040665,-500.0,0.00036563,15]
[342942732,1732215040674,-500.0,0.00036563,15]
[342942734,1732215040684,-500.0,0.00036563,15]
[342942735,1732215040693,-500.0,0.00036563,15]
[342942736,1732215040703,-500.0,0.00036563,15]
[342942737,1732215040712,-500.0,0.00036563,15]
[342942738,1732215040722,-500.0,0.00036563,15]
[342942739,1732215040732,-500.0,0.00036563,15]
[342942740,1732215040741,-500.0,0.00036563,15]
[342942741,1732215040751,-500.0,0.00036563,15]
[342942742,1732215040760,-500.0,0.00036563,15]
[342942743,1732215040772,-500.0,0.00036563,15]
[342942744,1732215040782,-500.0,0.00036563,15]
[342942745,1732215040791,-500.0,0.00036563,15]
[342942746,1732215040801,-500.0,0.00036563,15]
[342942747,1732215040810,-181.81884534,0.00036563,15]
[342942748,1732215040820,-500.0,0.00036563,15]
[342942749,1732215040830,-500.0,0.00036563,15]
[342942750,1732215040839,-500.0,0.00036563,15]
[342942751,1732215040849,-500.0,0.00036563,15]
[342942752,1732215040859,-500.0,0.00036563,15]
[342942753,1732215040869,-500.0,0.00036563,15]
[342942754,1732215040879,-500.0,0.00036563,15]
[342942755,1732215040889,-551.74211195,0.00036563,15]
[342942756,1732215040898,-500.0,0.00036563,15]
[342942757,1732215040908,-500.0,0.00036563,15]
[342942758,1732215040918,-500.0,0.00036563,15]
[342942759,1732215040927,-500.0,0.00036563,15]
[342942760,1732215040937,-321.96362718,0.00038256,2]
[342942761,1732215040947,-828.07,0.00038346,10]
[342942762,1732215040956,-414.88612987,0.00038356,11]
[342942763,1732215040966,-500.0,0.00038356,11]
[342942764,1732215040975,-390.96651625,0.00038356,11]
[342942765,1732215040985,-500.0,0.00038356,11]
[342942766,1732215040994,-500.0,0.00038356,11]
[342942767,1732215041004,-500.0,0.00038356,11]
[342942768,1732215041013,-1305.09,0.00038356,11]
[342942769,1732215041026,-500.0,0.00038356,11]
[342942770,1732215041035,-500.0,0.00038356,11]
[342942771,1732215041045,-500.0,0.00038356,11]
[342942772,1732215041054,-500.0,0.00038356,11]
[342942773,1732215041065,-500.0,0.00038356,11]
[342942774,1732215041077,-500.0,0.00038356,11]
[342942775,1732215041087,-500.0,0.00038356,11]
[342942776,1732215041096,-500.0,0.00038356,11]
[342942777,1732215041107,-500.0,0.00038356,11]
[342942778,1732215041116,-500.0,0.00038356,11]
[342942779,1732215041126,-500.0,0.00038356,11]
[342942780,1732215041136,-504.07,0.00038356,11]
[342942781,1732215041145,-500.0,0.00038356,11]
[342942782,1732215041157,-500.0,0.00038356,11]
[342942783,1732215041167,-600.48,0.00038356,11]
[342942784,1732215041177,-500.0,0.00038356,11]
[342942785,1732215041187,-624.01,0.00038356,11]
[342942786,1732215041196,-1010.39,0.00038356,11]
[342942787,1732215041207,-500.0,0.00038356,11]
[342942788,1732215041216,-500.0,0.00038356,11]
[342942789,1732215041226,-500.0,0.00038356,11]
[342942790,1732215041235,-500.0,0.00038356,11]
[342942791,1732215041245,-500.0,0.00038356,11]
[342942792,1732215041255,-500.0,0.00038356,11]
[342942793,1732215041265,-1248.91,0.00038356,11]
[342942794,1732215041277,-500.0,0.00038356,11]
[342942795,1732215041287,-585.17,0.00038356,11]
[342942796,1732215041297,-376.74644806,0.00038356,11]
[342942797,1732215041310,-123.25355194,0.00038356,11]
[342942798,1732215041322,-500.0,0.00038356,11]
[342942799,1732215041332,-500.0,0.00038356,11]
[342942800,1732215041342,-500.0,0.00038356,11]
[342942801,1732215041351,-164.66644806,0.00038356,11]
[342942802,1732215041426,-197.26635184,0.00038356,11]
[342942803,1732215041437,-190.1972001,0.00038356,11]
[342942804,1732215041447,-500.0,0.00038356,11]
[342942805,1732215041457,-500.0,0.00038356,11]
[342942806,1732215041467,-500.0,0.00038356,7]
[342942807,1732215041477,-500.0,0.00038356,11]
[342942808,1732215041487,-500.0,0.00038356,11]
[342942809,1732215041496,-500.0,0.00038356,11]
[342942810,1732215041506,-500.0,0.00038356,11]
[342942811,1732215041516,-500.0,0.00038356,11]
[342942812,1732215041527,-500.0,0.00038356,11]
[342942813,1732215041536,-500.0,0.00038356,11]
[342942814,1732215041546,-500.0,0.00038356,11]
[342942815,1732215041556,-500.0,0.00038356,11]
[342942816,1732215041566,-500.0,0.00038356,11]
[342942817,1732215041575,-500.0,0.00038356,11]
[342942818,1732215041584,-500.0,0.00038356,11]
[342942819,1732215041594,-500.0,0.00038356,11]
[342942820,1732215041603,-500.0,0.00038356,11]
[342942821,1732215041612,-207.13568884,0.00038356,11]
[342942822,1732215041863,-292.86431116,0.00038356,11]
[342942823,1732215041873,-1556.12,0.00038356,11]
[342942824,1732215041883,-624.67847114,0.00038356,11]
[342942825,1732215041894,-94.48278958,0.00038356,11]
[342942826,1732215042083,-405.51721042,0.00038356,11]
[342942827,1732215042093,-500.0,0.00038356,11]
[342942828,1732215042104,-126.93679182,0.00038356,11]
[342942829,1732215042117,-373.06320818,0.00038356,11]
[342942830,1732215042127,-747.59,0.00038356,11]
[342942831,1732215042138,-500.0,0.00038356,11]
[342942832,1732215042150,-813.81,0.00038356,11]
[342942833,1732215042160,-115.3490135,0.00038356,11]
[342942834,1732215042251,-384.6509865,0.00038356,11]
[342942835,1732215042261,-500.0,0.00038356,11]
[342942836,1732215042273,-500.0,0.00038356,11]
[342942837,1732215042283,-500.0,0.00038356,11]
[342942838,1732215042294,-500.0,0.00038356,11]
[342942839,1732215042304,-500.0,0.00038356,11]
[342942840,1732215042314,-500.0,0.00038356,11]
[342942841,1732215042324,-500.0,0.00038356,11]
[342942842,1732215042334,-500.0,0.00038356,11]
[342942843,1732215042344,-500.0,0.00038356,11]
[342942844,1732215042355,-500.0,0.00038356,11]
[342942845,1732215042365,-500.0,0.00038356,11]
[342942846,1732215042376,-500.0,0.00038356,11]
[342942847,1732215042386,-500.0,0.00038356,11]
[342942848,1732215042396,-500.0,0.00038356,11]
[342942849,1732215042406,-500.0,0.00038356,11]
[342942850,1732215042416,-500.0,0.00038356,11]
[342942851,1732215042426,-500.0,0.00038356,11]
[342942852,1732215042437,-500.0,0.00038356,11]
[342942853,1732215042447,-500.0,0.00038356,11]
[342942854,1732215042457,-500.0,0.00038356,11]
[342942855,1732215042469,-500.0,0.00038356,11]
[342942856,1732215042480,-500.0,0.00038356,11]
[342942857,1732215042491,-500.0,0.00038356,11]
[342942858,1732215042502,-500.0,0.00038356,11]
[342942860,1732215042512,-55.69365156,0.00038356,11]
[342942862,1732215042538,-302.72417503,0.00036464,15]
[342942863,1732215042555,-2836.5478523,0.00036464,15]
[342942866,1732215042765,-444.30634844,0.00038356,11]
[342942867,1732215042777,-500.0,0.00038356,11]
[342942868,1732215042786,-225.41344014,0.00038356,11]
[342942869,1732215042798,-274.58655986,0.00038356,11]
[342942870,1732215042808,-500.0,0.00038356,11]
[342942871,1732215042817,-500.0,0.00038356,11]
[342942872,1732215042826,-903.4502016,0.00038356,11]
[342942873,1732215042837,-558.1897984,0.00038356,11]
[342942874,1732215042847,-500.0,0.00038356,11]
[342942875,1732215042857,-359.78520161,0.00038356,11]
[342942876,1732215042868,-752.22154919,0.00038356,11]
[342942877,1732215044078,-291.68594579,0.00035692,2]
[342942879,1732215044286,-708.31405421,0.00035692,2]
[342942880,1732215044296,-74.61044224,0.000364,21]
[342942881,1732215044307,-425.38955776,0.000364,21]
[342942882,1732215044317,-500.0,0.00036563,15]
[342942883,1732215044327,-500.0,0.00036563,15]
[342942884,1732215044336,-500.0,0.00036563,15]
[342942885,1732215044346,-6717.0532492,0.00038356,11]
[342942886,1732215044356,-500.0,0.00038356,11]
[342942887,1732215044365,-500.0,0.00038356,11]
[342942888,1732215044374,-500.0,0.00038356,11]
[342942889,1732215044383,-500.0,0.00038356,11]
[342942890,1732215044393,-345.57019324,0.00038356,11]
[342942891,1732215044436,-154.42980676,0.00038356,11]
[342942892,1732215044445,-500.0,0.00038356,11]
[342942893,1732215044454,-500.0,0.00038356,11]
[342942894,1732215044465,-500.0,0.00038356,11]
[342942895,1732215044474,-389.3521192,0.00038356,11]
[342942896,1732215044486,-110.6478808,0.00038356,11]
[342942897,1732215044495,-484.91893917,0.00038356,11]
[342942898,1732215044518,-15.08106083,0.00038356,11]
[342942899,1732215044529,-500.0,0.00038356,11]
[342942900,1732215044538,-500.0,0.00038356,11]
[342942901,1732215044547,-500.0,0.00038356,11]
[342942902,1732215044557,-500.0,0.00038356,11]
[342942903,1732215044567,-615.54,0.00038356,11]
[342942904,1732215044576,-500.0,0.00038356,11]
[342942905,1732215044586,-500.0,0.00038356,11]
[342942906,1732215044595,-500.0,0.00038356,11]
[342942907,1732215044605,-500.0,0.00038356,11]
[342942909,1732215044614,-500.0,0.00038356,11]
[342942911,1732215044623,-500.0,0.00038356,11]
[342942913,1732215044633,-500.0,0.00038356,11]
[342942914,1732215044642,-541.93,0.00038356,11]
[342942916,1732215044651,-1000.0,0.00038356,11]
[342942918,1732215044660,-500.000001,0.00038356,11]
[342942919,1732215044670,-500.0,0.00038356,2]
[342942920,1732215044679,-500.0,0.00038356,11]
[342942921,1732215044689,-515.73,0.00038356,11]
[342942922,1732215044700,-500.0,0.00038356,11]
[342942923,1732215044709,-887.1,0.00038356,11]
[342942924,1732215044718,-500.0,0.00038356,11]
[342942925,1732215044728,-500.0,0.00038356,11]
[342942926,1732215044737,-500.0,0.00038356,11]
[342942927,1732215044746,-500.0,0.00038356,11]
[342942928,1732215044756,-500.0,0.00038356,11]
[342942929,1732215044765,-500.0,0.00038356,11]
[342942930,1732215044775,-500.0,0.00038356,11]
[342942931,1732215044784,-500.0,0.00038356,11]
[342942932,1732215044793,-500.0,0.00038356,11]
[342942933,1732215044803,-500.0,0.00038356,11]
[342942935,1732215044812,-500.0,0.00038356,11]
[342942936,1732215044821,-500.0,0.00038356,11]
[342942937,1732215044831,-500.0,0.00038356,11]
[342942940,1732215044840,-500.0,0.00038356,11]
[342942944,1732215044849,-500.0,0.00038356,11]
[342942945,1732215044859,-500.0,0.00038356,11]
[342942946,1732215044867,-500.0,0.00038356,11]
[342942947,1732215044876,-500.0,0.00038356,11]
[342942948,1732215044886,-500.0,0.00038356,11]
[342942949,1732215044896,-500.0,0.00038356,11]
[342942950,1732215044905,-500.0,0.00038356,11]
[342942951,1732215044915,-584.54680628,0.00038356,11]
[342942952,1732215044923,-500.0,0.00038356,11]
[342942953,1732215044932,-500.0,0.00038356,11]
[342942954,1732215044941,-500.0,0.00038356,11]
[342942955,1732215044950,-160.22674808,0.00038373,5]
[342942956,1732215044960,-561.96,0.00038428,11]
[342942957,1732215044969,-267.88538381,0.00038428,11]
[342942960,1732215045785,-3139.2720273,0.00037735,15]
[342942961,1732215045794,-500.0,0.00038356,11]
[342942962,1732215045803,-232.11461619,0.00038428,11]
[342942963,1732215045812,-500.0,0.00038428,11]
[342942964,1732215045821,-500.0,0.00038428,11]
[342942965,1732215045830,-500.0,0.00038428,11]
[342942966,1732215045840,-500.0,0.00038428,11]
[342942967,1732215045849,-500.0,0.00038428,11]
[342942968,1732215045858,-500.0,0.00038428,11]
[342942969,1732215045867,-500.0,0.00038428,11]
[342942970,1732215045876,-500.0,0.00038428,11]
[342942971,1732215045885,-500.0,0.00038428,11]
[342942972,1732215045894,-500.0,0.00038428,11]
[342942973,1732215045904,-500.0,0.00038428,11]
[342942974,1732215045913,-500.0,0.00038428,11]
[342942975,1732215045923,-500.0,0.00038428,11]
[342942976,1732215045932,-534.75,0.00038428,11]
[342942977,1732215045942,-500.0,0.00038428,11]
[342942978,1732215045951,-500.0,0.00038428,11]
[342942979,1732215045960,-599.89,0.00038428,11]
[342942980,1732215045969,-500.0,0.00038428,11]
[342942981,1732215045978,-500.0,0.00038428,11]
[342942982,1732215045987,-500.0,0.00038428,11]
[342942983,1732215045998,-500.0,0.00038428,11]
[342942984,1732215046007,-500.0,0.00038428,11]
[342942985,1732215046016,-500.0,0.00038428,11]
[342942986,1732215046028,-500.0,0.00038428,11]
[342942987,1732215046037,-500.0,0.00038428,11]
[342942988,1732215046046,-500.0,0.00038428,11]
[342942989,1732215046055,-403.97712651,0.00038428,11]
[342942990,1732215046068,-96.02287349,0.00038428,11]
[342942991,1732215046081,-500.0,0.00038428,11]
[342942992,1732215046090,-500.0,0.00038428,11]
[342942993,1732215046099,-500.0,0.00038428,11]
[342942994,1732215046108,-500.0,0.00038428,11]
[342942995,1732215046119,-500.0,0.00038428,11]
[342942996,1732215046129,-500.0,0.00038428,11]
[342942997,1732215046140,-500.0,0.00038428,11]
[342942998,1732215046150,-500.0,0.00038428,11]
[342942999,1732215046160,-500.0,0.00038428,11]
[342943000,1732215046169,-500.0,0.00038428,11]
[342943001,1732215046178,-500.0,0.00038428,11]
[342943002,1732215046188,-500.0,0.00038428,11]
[342943003,1732215046197,-500.0,0.00038428,11]
[342943004,1732215046207,-755.91,0.00038428,11]
[342943005,1732215046217,-531.67,0.00038428,11]
[342943006,1732215046226,-500.0,0.00038428,11]
[342943007,1732215046237,-500.0,0.00038428,11]
[342943008,1732215046246,-518.1,0.00038428,11]
[342943009,1732215046255,-500.0,0.00038428,11]
[342943010,1732215046265,-500.0,0.00038428,11]
[342943011,1732215046275,-500.0,0.00038428,11]
[342943012,1732215046284,-500.0,0.00038428,11]
[342943014,1732215046293,-500.0,0.00038428,11]
[342943016,1732215046302,-500.0,0.00038428,11]
[342943018,1732215046311,-523.44,0.00038428,11]
[342943019,1732215046321,-500.0,0.00038428,11]
[342943020,1732215046330,-7686.45,0.00038428,2]
[342943021,1732215046339,-500.0,0.00038428,11]
[342943022,1732215046348,-1000.0,0.00038428,11]
[342943023,1732215046358,-602.41,0.00038428,11]
[342943024,1732215046367,-500.0,0.00038428,11]
[342943025,1732215046376,-500.0,0.00038428,11]
[342943026,1732215046385,-782.47,0.00038428,11]
[342943027,1732215046394,-500.0,0.00038428,11]
[342943028,1732215046403,-500.0,0.00038428,11]
[342943029,1732215046413,-500.0,0.00038428,11]
[342943030,1732215046422,-500.0,0.00038428,11]
[342943031,1732215046431,-251.97564066,0.00038428,11]
[342943032,1732215046541,-248.02435934,0.00038428,11]
[342943033,1732215046551,-349.31794058,0.00038428,11]
[342943034,1732215046564,-152.68205942,0.00038428,11]
[342943035,1732215046573,-2601.18742042,0.00038429,2]
[342943036,1732215046584,-4067.57410415,0.00038429,2]
[342943037,1732215046602,-2034.74381007,0.00038429,2]
[342943038,1732215046620,-4464.05995965,0.00038429,2]
[342943039,1732215046635,-3200.79108898,0.00038429,2]
[342943040,1732215046659,-441.64884687,0.00038356,11]
[342943041,1732215046693,-2995.18524139,0.00038256,2]
[342943042,1732215046706,-58.35115313,0.00038356,11]
[342943043,1732215046719,-11685.68320548,0.00038429,2]
[342943044,1732215115428,242.6,0.00015342,2]
[342943045,1732215115647,242.6,0.00021745,2]
[342943046,1732215115898,242.6,0.00028147,2]
[342943047,1732215120042,151.946,0.0002204,2]
[342943048,1732215130887,400.0,0.0001,2]
[342943049,1732215137978,151.0,0.0003,120]
[342943050,1732215227823,500.0,0.00024932,2]
[342943051,1732215259013,-1251.4242,0.00030037,30]
[342943052,1732215259036,-151.946,0.00031861,2]
[342943053,1732215259061,-1908.0,0.000339,3]
[342943054,1732215259085,-479.21,0.0003399,10]
[342943055,1732215259108,-610.19,0.0003399,10]
[342943056,1732215259131,-1305.0,0.00033999,2]
[342943057,1732215259157,-922801.49342714,0.00034,30]
[342943059,1732215375366,274.0,0.0002906,2]
[342943060,1732215375687,274.0,0.0002795,2]
[342943061,1732215376028,274.0,0.0002685,2]
[342943064,1732215497837,151.0,0.0003,120]
[342943065,1732215578841,163.32,0.00027709,2]
[342943066,1732215653496,165.22,0.00027953,2]
[342943068,1732215716510,247.91,0.00019178,2]
[342943069,1732215716800,247.91,0.00024658,2]
[342943070,1732215719280,176.715,0.00022386,2]
[342943071,1732215720265,190.4355,0.00022386,2]
[342943072,1732215731421,151.0,0.0003,120]
[342943074,1732215747662,151.0,0.0003,120]
[342943075,1732215800522,187.9,0.00015342,2]
[342943076,1732215800715,187.9,0.00021745,2]
[342943077,1732215800943,187.9,0.00028147,2]
[342943078,1732215831264,500.0,0.00024932,2]
[342943079,1732215880105,150.0,0.000301,2]
[342943080,1732215903338,353.0,0.000211,2]
[342943081,1732215982070,336.10768824,0.00030037,2]
[342943082,1732216004116,-222.58018512,0.00030137,2]
[342943083,1732216004139,-247.91,0.00030137,2]
[342943084,1732216004162,-195.63114192,0.0003016,2]
[342943085,1732216115297,-1333.0,0.00031945,120]
[342943086,1732216115326,-366.86,0.00034105,120]
[342943087,1732216115354,-430.16,0.00034188,120]
[342943088,1732216115382,-250.0,0.0003427,120]
[342943089,1732216115413,-2751.0,0.00034592,120]
[342943090,1732216115442,-173.58,0.00034636,120]
[342943091,1732216115471,-150.0,0.00035,60]
[342943092,1732216115501,-150.0,0.00035,60]
[342943093,1732216115528,-193.756642,0.00035,60]
[342943094,1732216115559,-500.18,0.00035219,120]
[342943095,1732216115592,-569.84,0.00037008,120]
[342943096,1732216115620,-388.79741919,0.000372,103]
[342943097,1732216115648,-388.79741919,0.000372,103]
[342943098,1732216115679,-150.0,0.00037357,120]
[342943099,1732216115710,-500.18,0.00037803,120]
[342943100,1732216115742,-352.15186746,0.00038,120]
[342943101,1732216115772,-500.0,0.00038227,60]
[342943102,1732216115803,-1600.0,0.00038227,60]
[342943103,1732216115831,-1900.0,0.00038227,60]
[342943104,1732216115861,-175.92,0.00038333,91]
[342943105,1732216115918,-2000.0,0.00038356,120]
[342943106,1732216115946,-201.42004022,0.00038356,60]
[342943107,1732216115973,-500.0,0.00038428,120]
[342943108,1732216116001,-430.16,0.00038461,120]
[342943109,1732216116029,-773.0552332,0.00038629,120]
[342943110,1732216116073,-2000.0,0.0003863,120]
[342943111,1732216116101,-500.0,0.00038702,120]
[342943112,1732216116132,-1600.0,0.00038775,60]
[342943113,1732216116161,-1900.0,0.00038775,60]
[342943114,1732216116203,-2000.0,0.00038904,120]
[342943115,1732216116232,-592.79,0.00038976,120]
[342943116,1732216116270,-2000.0,0.00039178,120]
[342943117,1732216116303,-1600.0,0.00039323,60]
[342943118,1732216116332,-1900.0,0.00039323,60]
[342943119,1732216116358,-500.0,0.00039323,60]
[342943120,1732216116386,-388.79741919,0.00039373,116]
[342943121,1732216116427,-2000.0,0.00039452,120]
[342943122,1732216116471,-2000.0,0.00039726,120]
[342943123,1732216116502,-1600.0,0.00039871,60]
[342943124,1732216116531,-1900.0,0.00039871,60]
[342943125,1732216116564,-1626.13713323,0.00039903,120]
[342943126,1732216116591,-261.10552198,0.0004,120]
[342943127,1732216116620,-352.15186746,0.0004,120]
[342943128,1732216116648,-1016.78,0.0004,120]
[342943129,1732216116675,-2621.7,0.0004,120]
[342943130,1732216116704,-2335.44,0.0004,120]
[342943131,1732216116732,-151.0,0.0004,120]
[342943132,1732216116770,-2000.0,0.0004,120]
[342943133,1732216116804,-1280.0,0.00040242,120]
[342943134,1732216116830,-282.28,0.0004027,120]
[342943135,1732216116856,-150.5,0.0004027,120]
[342943136,1732216116889,-2000.0,0.00040273,120]
[342943137,1732216116916,-150.5,0.0004028,120]
[342943138,1732216116942,-150.5,0.0004028,120]
[342943139,1732216116970,-150.5,0.0004029,120]
[342943140,1732216116996,-150.5,0.0004029,120]
[342943141,1732216117024,-500.18,0.00040387,120]
[342943142,1732216126357,218.87,0.00016712,2]
[342943143,1732216128330,197.175,0.00021689,2]
[342943144,1732216153086,-310.81401563,0.00030137,2]
[342943145,1732216153107,-78.36885808,0.0003016,2]
[342943146,1732216153128,-250.0,0.00031,2]
[342943147,1732216153149,-274.0,0.0003126,2]
[342943148,1732216153170,-205.98076749,0.0003151,30]
[342943157,1732216216857,151.0,0.0003,120]
[342943158,1732216218957,176.715,0.00022781,2]
[342943159,1732216219880,158.6745,0.00022781,2]
[342943170,1732216231912,-787.30280112,0.0003151,30]
[342943171,1732216231922,-901.25552513,0.0003151,30]
[342943172,1732216231933,-367.6811731,0.00031845,2]
[342943174,1732216231942,-274.0,0.0003237,2]
[342943175,1732216231952,-158.6745,0.00032444,2]
[342943176,1732216231962,-2371.48,0.00032675,10]
[342943177,1732216231973,-589.11,0.00032675,2]
[342943178,1732216231983,-567.74,0.00032675,2]
[342943179,1732216231994,-150.99,0.00032675,2]
[342943180,1732216232009,-209.82,0.00032675,20]
[342943181,1732216232020,-4411.97,0.00032675,2]
[342943182,1732216232030,-599.21,0.00032675,10]
[342943183,1732216232041,-150.99,0.00032675,30]
[342943184,1732216232052,-299.99,0.00032675,30]
[342943185,1732216232063,-1846.46,0.00032675,2]
[342943186,1732216232074,-367.68117308,0.00032982,2]
[342943187,1732216232085,-300.0,0.00033,2]
[342943188,1732216232096,-274.0,0.0003347,2]
[342943189,1732216232107,-500.0,0.00033661,2]
[342943190,1732216232118,-223.16268068,0.00033753,2]
[342943191,1732216232128,-250.0,0.00033881,2]
[342943192,1732216232138,-250.0,0.00033889,2]
[342943193,1732216232148,-574.14452975,0.000339,6]
[342943194,1732216232162,-687.4626,0.000339,30]
[342943195,1732216232172,-5383.80657286,0.00034,30]
[342943196,1732216232183,-165.81,0.00034081,2]
[342943197,1732216232193,-1000.0,0.00034098,2]
[342943198,1732216232203,-1998.78,0.00034099,2]
[342943199,1732216232214,-1000.0,0.00034099,2]
[342943200,1732216232224,-177.727,0.00034099,37]
[342943201,1732216232234,-1899.576,0.00034099,37]
[342943202,1732216232243,-367.68117308,0.00034118,2]
[342943203,1732216232253,-200.0,0.00034128,2]
[342943204,1732216232262,-1399.04640243,0.00034169,2]
[342943205,1732216232274,-383.67948,0.00034169,2]
[342943206,1732216232285,-401.965,0.00034169,2]
[342943207,1732216232296,-1261.05911757,0.00034169,2]
[342943208,1732216232305,-200.0,0.0003417,2]
[342943209,1732216232316,-4284.6358438,0.0003419,2]
[342943210,1732216232325,-913.83,0.00034192,2]
[342943211,1732216232335,-29620.97,0.000342,20]
[342943212,1732216232344,-183.08,0.00034209,2]
[342943213,1732216232353,-228.53,0.00034217,2]
[342943214,1732216232362,-1000.0,0.00034224,2]
[342943215,1732216232371,-2000.0,0.00034225,2]
[342943216,1732216232380,-164.52,0.00034225,2]
[342943217,1732216232390,-3107.58,0.00034284,2]
[342943218,1732216232399,-23900.0,0.00034336,2]
[342943219,1732216232409,-150.36,0.00034341,2]
[342943220,1732216232418,-986.0,0.00034365,2]
[342943221,1732216232427,-508.49,0.00034497,10]
[342943222,1732216232438,-2420.68,0.00034507,2]
[342943223,1732216232450,-762.35,0.00034521,2]
[342943224,1732216232459,-242.6,0.00034549,2]
[342943225,1732216232468,-187.9,0.00034549,2]
[342943226,1732216232477,-274.0,0.0003457,2]
[342943227,1732216232487,-200.0,0.00034596,2]
[342943228,1732216232496,-150.0,0.0003463,2]
[342943229,1732216232505,-300.0,0.00034632,2]
[342943230,1732216232514,-150.0,0.0003472,2]
[342943231,1732216232524,-500.0,0.0003486,5]
[342943232,1732216232533,-383.27,0.00034886,2]
[342943233,1732216232542,-500.0,0.00034893,2]
[342943234,1732216232552,-159.8,0.00034896,2]
[342943235,1732216232561,-1000.0,0.00034927,2]
[342943236,1732216232572,-1846.46,0.00034938,2]
[342943237,1732216232582,-350.0,0.00035,2]
[342943239,1732216232591,-150.0,0.00035,60]
[342943241,1732216232601,-449.43,0.00035029,2]
[342943243,1732216232613,-25623.59,0.00035087,2]
[342943245,1732216232623,-2432.28,0.00035147,2]
[342943247,1732216232632,-156.59,0.00035261,2]
[342943249,1732216232642,-356.2383517,0.00035562,7]
[342943251,1732216232651,-247.91,0.00035616,2]
[342943254,1732216232667,-184.83,0.00035616,120]
[342943256,1732216232677,-166.73,0.0003563,2]
[342943258,1732216232686,-150.0,0.00035647,2]
[342943260,1732216232695,-3642.03,0.00035661,2]
[342943262,1732216232704,-274.0,0.0003568,2]
[342943263,1732216232716,-762.35,0.00035798,2]
[342943265,1732216232725,-746.0,0.000358,3]
[342943268,1732216232736,-167.14,0.00035842,2]
[342943270,1732216232745,-300.0,0.00035869,2]
[342943272,1732216232754,-300.0,0.000359,2]
[342943274,1732216232764,-300.0,0.000359,2]
[342943276,1732216232773,-300.0,0.000359,2]
[342943278,1732216232783,-300.0,0.000359,2]
[342943280,1732216232792,-300.0,0.000359,2]
[342943281,1732216232801,-300.43458934,0.000359,2]
[342943283,1732216232811,-300.0,0.00035929,2]
[342943285,1732216232821,-6308.884649,0.000364,2]
[342943287,1732216232830,-3320.5641492,0.00036466,15]
[342943289,1732216232839,-155.2,0.00036566,30]